bitfinex-derivatives/quotes_SOLF0:USTF0_20240925
["timestamp","ask_amount","ask_price","bid_price","bid_amount"]
[1727251478498,20.03,150.17,150.03,8.2]
[1727251478698,9.5725,150.13,150.08,8.2]
[1727251479099,3.3312,150.09,150.08,8.2]
[1727251479397,9.5725,150.13,150.08,8.2]
[1727251479398,1.3725,150.13,150.08,8.2]
[1727251479703,1.3725,150.13,150.1,8.2]
[1727251480299,3.3305,150.12,150.1,8.2]
[1727251480605,69.80511383,150.18,150.11,8.2]
[1727251480804,69.80511383,150.18,149.97,5.41445109]
[1727251480805,3.3302,150.13,150.12,8.2]
[1727251481007,69.80511383,150.18,150.12,8.2]
[1727251481205,69.80511383,150.18,150.03,80.02]
[1727251481396,1.3393,150.22,150.17,8.2]
[1727251481905,8.2,150.21,150.17,8.2]
[1727251482101,8.2,150.21,150.16,8.2]
[1727251482506,1.3393,150.22,150.17,8.2]
[1727251483206,1.3393,150.22,150.19,8.2]
[1727251484004,3.3287,150.2,150.19,8.2]
[1727251485301,3.3287,150.2,150.11,3.1125]
[1727251485302,3.3291,150.19,150.18,8.2]
[1727251485999,3.3291,150.19,150.13,3.3302]
[1727251486205,9.5393,150.22,150.11,3.1125]
[1727251486405,1.3393,150.22,150.18,8.2]
[1727251487297,1.3393,150.22,150.11,3.1125]
[1727251487298,3.329,150.19,150.13,3.3302]
[1727251487499,1.3393,150.22,150.18,8.2]
[1727251487908,10.8743,150.24,150.18,8.2]
[1727251488299,3.3292,150.18,150.12,3.3303]
[1727251488498,3.3292,150.18,150.17,8.2]
[1727251490704,3.3298,150.16,150.11,3.1125]
[1727251490907,3.3298,150.16,150.15,8.2]
[1727251492010,3.3298,150.16,150.11,3.1125]
[1727251492307,3.3298,150.16,150.15,8.2]
[1727251496910,3.3298,150.16,150.11,6.4432]
[1727251497109,3.3298,150.16,150.15,8.2]
[1727251502014,1.3665,150.23,150.15,8.2]
[1727251502015,3.3294,150.17,150.15,8.2]
[1727251504415,3.3296,150.16,150.15,8.2]
[1727251505919,3.3294,150.17,150.15,8.2]
[1727251507520,3.3296,150.16,150.11,6.443]
[1727251507922,3.3296,150.16,150.15,8.2]
[1727251508426,8.2,150.21,150.15,8.2]
[1727251509522,3.3295,150.17,150.16,8.2]
[1727251509725,1.3665,150.23,150.16,8.2]
[1727251509924,2.6743,150.24,150.19,8.2]
[1727251511124,2.6743,150.24,150.2,8.2]
[1727251511529,10.8743,150.24,150.11,3.1125]
[1727251511827,10.8743,150.24,150.19,8.2]
[1727251512936,10.8743,150.24,150.18,8.2]
[1727251513427,10.8743,150.24,150.2,8.2]
[1727251513619,2.6743,150.24,150.2,8.2]
[1727251513819,3.3284,150.22,150.2,8.2]
[1727251514128,1.3087,150.24,150.21,8.2]
[1727251514319,3.3282,150.23,150.21,8.2]
[1727251514522,1.3087,150.24,150.21,8.2]
[1727251515724,69.66655553,150.28,150.21,8.2]
[1727251515923,3.328,150.23,150.21,8.2]
[1727251517828,3.328,150.23,150.18,3.329]
[1727251518026,3.328,150.23,150.21,8.2]
[1727251518531,8.2,150.26,150.21,8.2]
[1727251518927,3.3281,150.23,150.21,8.2]
[1727251520134,3.3284,150.22,150.17,3.3293]
[1727251520329,3.3284,150.22,150.21,8.2]
[1727251520531,69.66655553,150.28,150.21,8.2]
[1727251520730,69.66655553,150.28,150.23,8.2]
[1727251520731,77.86655553,150.28,150.23,8.2]
[1727251520930,69.66655553,150.28,150.24,8.2]
[1727251521129,3.3272,150.27,150.25,8.2]
[1727251521335,1.3697,150.3,150.14,88.84157507]
[1727251521536,1.3697,150.3,150.26,8.2]
[1727251521724,3.3273,150.27,150.26,8.2]
[1727251522125,9.5697,150.3,150.21,3.3284]
[1727251522438,3.3275,150.26,150.24,8.2]
[1727251523135,8.2,150.3,150.2,3.3286]
[1727251523136,3.3276,150.25,150.2,3.3286]
[1727251523335,2.7617,150.34,150.14,88.84157507]
[1727251523336,8.2,150.29,150.14,88.84157507]
[1727251523540,2.7617,150.34,150.23,8.2]
[1727251523541,9.5475,150.28,150.23,8.2]
[1727251523729,3.3278,150.24,150.23,8.2]
[1727251525234,1.3475,150.28,150.23,8.2]
[1727251525434,1.3475,150.28,150.25,8.2]
[1727251526042,3.3273,150.26,150.25,8.2]
[1727251526844,3.3272,150.27,150.25,8.2]
[1727251527537,3.3273,150.26,150.25,8.2]
[1727251527731,1.3475,150.28,150.25,8.2]
[1727251529042,3.3273,150.27,150.25,8.2]
[1727251530537,1.3475,150.28,150.25,8.2]
[1727251531541,3.3273,150.27,150.25,8.2]
[1727251532146,3.3273,150.26,150.25,8.2]
[1727251534145,3.327,150.28,150.25,8.2]
[1727251534445,1.3488,150.33,150.27,8.2]
[1727251535049,8.2,150.32,150.17,3.0094]
[1727251535246,12.3052,150.32,150.26,8.2]
[1727251535638,8.2,150.3,150.26,8.2]
[1727251536141,3.3271,150.28,150.26,8.2]
[1727251536642,4.1052,150.32,150.26,8.2]
[1727251536643,3.3267,150.29,150.26,8.2]
[1727251536846,3.3267,150.29,150.23,3.3278]
[1727251537046,8.2,150.31,150.25,8.2]
[1727251538249,3.327,150.28,150.25,8.2]
[1727251542749,4.1052,150.32,150.26,8.2]
[1727251542955,12.3052,150.32,150.26,8.2]
[1727251543252,3.3266,150.3,150.26,8.2]
[1727251543553,12.3052,150.32,150.28,8.2]
[1727251543854,4.1052,150.32,150.28,8.2]
[1727251545144,3.3266,150.3,150.26,8.2]
[1727251545350,8.2,150.31,150.26,8.2]
[1727251546552,3.3265,150.3,150.26,8.2]
[1727251547055,8.2,150.33,150.26,8.2]
[1727251547748,3.3265,150.3,150.26,8.2]
[1727251548458,3.3268,150.29,150.26,8.2]
[1727251548766,3.3268,150.29,150.24,3.3277]
[1727251548767,4.1308,150.34,150.17,82.9094]
[1727251549065,3.3273,150.27,150.17,82.9094]
[1727251549262,3.3273,150.27,150.23,8.2]
[1727251549661,3.3274,150.26,150.23,8.2]
[1727251549859,8.2,150.28,150.22,8.2]
[1727251550060,9.6031,150.28,150.22,8.2]
[1727251550460,9.6031,150.28,150.2,3.3285]
[1727251550758,8.2,150.26,150.17,82.1156]
[1727251551164,8.2,150.26,150.2,8.2]
[1727251551556,3.3282,150.23,150.2,8.2]
[1727251551756,8.2,150.26,150.2,8.2]
[1727251551957,8.2,150.25,150.17,79.9]
[1727251552161,8.2,150.25,150.19,8.2]
[1727251554068,2.7749,150.27,150.22,8.2]
[1727251554766,3.328,150.23,150.22,8.2]
[1727251555270,3.328,150.23,150.21,8.2]
[1727251555967,3.3282,150.22,150.21,8.2]
[1727251558067,3.3285,150.21,150.19,8.2]
[1727251559069,3.3283,150.22,150.19,8.2]
[1727251559267,3.3283,150.22,150.2,8.2]
[1727251559668,8.2,150.22,150.13,3.3302]
[1727251559864,8.2,150.22,150.16,8.2]
[1727251560060,8.2,150.21,150.16,8.2]
[1727251560265,9.5984,150.21,150.16,8.2]
[1727251561567,3.3291,150.19,150.16,8.2]
[1727251563966,3.3287,150.2,150.18,8.2]
[1727251564171,8.2,150.24,150.18,8.2]
[1727251564577,3.3286,150.21,150.18,8.2]
[1727251565074,8.2,150.23,150.17,8.2]
[1727251565373,3.329,150.19,150.17,8.2]
[1727251565571,8.2,150.2,150.15,8.2]
[1727251565874,3.3292,150.18,150.15,8.2]
[1727251566074,2.7415,150.2,150.16,8.2]
[1727251566272,3.3291,150.19,150.16,8.2]
[1727251567473,3.3292,150.18,150.16,8.2]
[1727251567771,10.9415,150.2,150.15,8.2]
[1727251567976,3.33,150.15,150.13,8.2]
[1727251570773,2.7415,150.2,150.06,1.3762]
[1727251570774,8.2,150.14,150.06,1.3762]
[1727251570970,1.3901,150.19,150.08,8.2]
[1727251570971,8.2,150.13,150.08,8.2]
[1727251573872,3.3311,150.09,150.03,3.3323]
[1727251574069,3.3311,150.09,150.06,8.2]
[1727251574470,3.3309,150.1,150.06,8.2]
[1727251574675,3.3309,150.1,150.08,8.2]
[1727251574875,9.5519,150.12,150.08,8.2]
[1727251576775,3.3309,150.1,150.08,8.2]
[1727251578082,3.3309,150.1,150.06,8.2]
[1727251579077,4.6824,150.12,150.09,8.2]
[1727251579493,8.2,150.15,150.09,8.2]
[1727251579788,3.3303,150.13,150.09,8.2]
[1727251580286,3.3305,150.12,150.09,8.2]
[1727251581081,8.2,150.16,150.11,8.2]
[1727251581591,3.3301,150.14,150.11,8.2]
[1727251585485,3.3302,150.13,150.11,8.2]
[1727251586285,8.2,150.16,150.08,3.3311]
[1727251586583,1.4057,150.18,150.11,8.2]
[1727251586784,3.3305,150.12,150.06,3.3316]
[1727251586992,3.3305,150.12,150.09,8.2]
[1727251591388,3.3307,150.11,150.09,8.2]
[1727251592390,8.2,150.14,150.09,8.2]
[1727251592594,8.2,150.14,150.08,8.2]
[1727251592990,3.3308,150.11,150.08,8.2]
[1727251594195,8.2,150.12,150.04,3.3322]
[1727251594392,1.4057,150.18,150.06,8.2]
[1727251594393,8.2,150.11,150.06,8.2]
[1727251594792,8.2,150.11,150.05,8.2]
[1727251595291,3.3313,150.09,150.05,8.2]
[1727251595495,8.2,150.09,150.05,8.2]
[1727251596110,3.3315,150.08,150.05,8.2]
[1727251596597,3.3316,150.07,150.05,8.2]
[1727251598602,3.3316,150.07,150.04,8.2]
[1727251601002,3.3318,150.06,150.0,1.7028]
[1727251601199,8.2,150.08,149.95,1.3072]
[1727251601406,8.2,150.06,150.0,8.2]
[1727251601600,3.3324,150.04,150.0,8.2]
[1727251602001,8.2,150.06,150.0,8.2]
[1727251602300,3.3326,150.03,150.0,8.2]
[1727251603303,2.7617,150.12,150.0,8.2]
[1727251603304,3.3323,150.04,150.0,8.2]
[1727251603606,2.7617,150.12,150.03,8.2]
[1727251603809,8.2,150.08,150.03,8.2]
[1727251604510,3.3321,150.05,150.03,8.2]
[1727251606003,8.2,150.07,150.02,8.2]
[1727251607603,3.3321,150.05,150.02,8.2]
[1727251609014,3.3321,150.05,149.99,3.3333]
[1727251609211,8.2,150.06,150.01,8.2]
[1727251609413,9.4875,150.06,150.01,8.2]
[1727251610210,9.4875,150.06,149.98,3.3335]
[1727251610513,8.2,150.04,149.95,1.3072]
[1727251610706,3.3325,150.03,150.0,8.2]
[1727251610910,2.7664,150.05,150.01,8.2]
[1727251612014,3.3323,150.04,150.01,8.2]
[1727251624315,3.3325,150.03,150.01,8.2]
[1727251627420,3.3327,150.02,149.97,3.3337]
[1727251627627,3.3327,150.02,149.99,8.2]
[1727251631317,3.3324,150.04,150.01,8.2]
[1727251631623,3.3324,150.04,149.95,1.3072]
[1727251631624,1.2875,150.06,150.03,8.2]
[1727251631824,2.6682,150.12,150.05,8.2]
[1727251632126,8.2,150.1,150.05,8.2]
[1727251632718,8.2,150.1,150.04,8.2]
[1727251632919,3.3317,150.07,150.04,8.2]
[1727251634524,8.2,150.09,150.03,8.2]
[1727251635127,3.3319,150.06,150.03,8.2]
[1727251637131,3.3319,150.06,150.0,3.3331]
[1727251637132,3.3321,150.05,150.0,3.3331]
[1727251637327,3.3321,150.05,150.02,8.2]
[1727251640330,8.2,150.09,149.97,1.7067]
[1727251640331,3.3318,150.06,150.04,8.2]
[1727251640535,8.2,150.1,150.04,8.2]
[1727251641540,3.3312,150.09,150.05,8.2]
[1727251642236,3.3314,150.08,150.05,8.2]
[1727251643042,3.3312,150.09,150.06,8.2]
[1727251643841,12.2437,150.12,150.06,8.2]
[1727251644544,3.3311,150.1,150.06,8.2]
[1727251644943,8.2,150.1,150.05,8.2]
[1727251645143,8.2,150.09,150.04,8.2]
[1727251645446,3.3314,150.08,150.04,8.2]
[1727251648243,3.3316,150.07,150.04,8.2]
[1727251657253,3.3314,150.08,150.04,8.2]
[1727251658555,11.5313,150.09,150.04,11.5322]
[1727251658753,8.2,150.09,150.04,8.2]
[1727251659153,3.3314,150.08,150.04,8.2]
[1727251661159,3.3314,150.08,150.03,3.3323]
[1727251661160,8.2,150.08,149.96,97.18298408]
[1727251661352,8.2,150.07,150.01,8.2]
[1727251661659,8.2,150.07,150.02,8.2]
[1727251662461,8.2,150.07,149.96,88.94745295]
[1727251662462,4.0437,150.12,150.05,8.2]
[1727251662659,9.22438987,150.11,150.05,8.2]
[1727251662858,8.2,150.11,150.05,8.2]
[1727251663855,3.3313,150.09,150.05,8.2]
[1727251667559,3.3314,150.08,150.05,8.2]
[1727251667760,8.2,150.08,149.99,3.0322]
[1727251667958,8.2,150.08,150.0,19.44409779]
[1727251668155,8.2,150.08,150.03,8.2]
[1727251668863,3.3318,150.06,150.03,8.2]
[1727251669760,3.332,150.05,150.03,8.2]
[1727251674266,3.3315,150.08,150.04,8.2]
[1727251674457,12.2437,150.12,150.06,8.2]
[1727251674661,8.2,150.1,150.06,8.2]
[1727251674862,8.2,150.1,150.05,8.2]
[1727251675866,3.3314,150.08,150.05,8.2]
[1727251677371,3.3312,150.09,150.05,8.2]
[1727251680467,3.3312,150.09,150.04,3.3322]
[1727251680468,3.331,150.1,150.06,8.2]
[1727251681973,11.5307,150.11,150.06,8.2]
[1727251682171,3.3307,150.11,150.08,8.2]
[1727251682872,7.3742,150.12,150.08,8.2]
[1727251683170,86.6572,150.21,150.09,8.2]
[1727251683171,8.2,150.14,150.09,8.2]
[1727251683367,8.2,150.12,150.07,8.2]
[1727251683572,8.2,150.1,149.99,11.28110281]
[1727251683778,3.3314,150.08,150.04,8.2]
[1727251684166,8.2,150.1,150.05,8.2]
[1727251684470,11.5311,150.1,150.05,8.2]
[1727251685473,3.3311,150.09,150.05,8.2]
[1727251685772,8.2,150.1,150.05,8.2]
[1727251685967,8.2,150.09,150.04,8.2]
[1727251686174,8.2,150.09,150.03,8.2]
[1727251686677,3.3318,150.06,150.03,8.2]
[1727251687078,11.5317,150.07,150.03,8.2]
[1727251687274,8.2,150.07,150.03,8.2]
[1727251687577,8.2,150.07,150.01,3.3327]
[1727251687578,8.2,150.07,150.02,8.2]
[1727251687875,3.3319,150.06,150.02,8.2]
[1727251691671,8.2,150.06,149.99,4.6624]
[1727251691980,8.2,150.06,150.01,8.2]
[1727251692174,8.2,150.07,150.01,8.2]
[1727251692479,3.3321,150.05,150.01,8.2]
[1727251692675,3.3321,150.05,150.03,8.2]
[1727251692874,8.2,150.07,150.03,8.2]
[1727251693480,3.3318,150.06,150.03,8.2]
[1727251694576,3.332,150.05,150.03,8.2]
[1727251696580,3.3319,150.06,150.03,8.2]
[1727251698984,8.2,150.05,150.01,8.2]
[1727251699188,8.2,150.04,149.96,97.22075348]
[1727251699379,8.2,150.04,149.99,8.2]
[1727251699581,3.3327,150.02,150.0,7.5035404]
[1727251699781,3.3327,150.02,149.99,8.2]
[1727251700088,3.3327,150.02,150.0,7.50366153]
[1727251700286,3.3327,150.02,149.99,8.2]
[1727251700586,3.3327,150.02,150.0,7.50434047]
[1727251700783,3.3327,150.02,149.99,8.2]
[1727251700983,3.3327,150.02,150.0,7.50388526]
[1727251701175,3.3327,150.02,149.99,8.2]
[1727251701376,3.3327,150.02,150.0,7.50251495]
[1727251701690,3.3329,150.01,149.99,8.2]
[1727251701988,3.3329,150.01,149.96,88.94745295]
[1727251701989,8.2,150.01,149.96,88.94745295]
[1727251702181,3.3333,150.0,149.97,19.51131804]
[1727251702383,3.3333,150.0,149.96,97.14745295]
[1727251702587,3.3333,150.0,149.97,7.50313808]
[1727251702779,3.3333,150.0,149.96,97.14745295]
[1727251703381,3.3333,150.0,149.97,8.2]
[1727251704388,3.3333,150.0,149.97,15.70324511]
[1727251704686,3.3333,150.0,149.97,8.2]
[1727251705888,3.3333,150.0,149.99,8.2]
[1727251706483,3.333,150.01,149.99,8.2]
[1727251712194,3.3327,150.02,149.99,8.2]
[1727251712396,3.3327,150.02,150.0,8.2]
[1727251714894,3.3325,150.03,150.0,8.2]
[1727251719996,3.3327,150.02,149.99,8.2]
[1727251721605,3.3325,150.03,149.99,8.2]
[1727251722598,2.7705,150.07,150.0,8.2]
[1727251722804,8.2,150.06,150.0,8.2]
[1727251723107,3.3324,150.04,150.0,8.2]
[1727251723310,8.2,150.06,150.0,8.2]
[1727251724606,3.3325,150.03,150.0,8.2]
[1727251725800,8.2,150.05,150.0,8.2]
[1727251726007,8.2,150.05,149.99,8.2]
[1727251726508,8.2,150.04,149.96,88.94745295]
[1727251726710,2.7705,150.07,149.97,8.2]
[1727251726711,8.2,150.02,149.97,8.2]
[1727251727105,3.333,150.01,149.98,8.2]
[1727251729905,3.333,150.01,149.99,8.2]
[1727251732204,3.3328,150.02,149.99,8.2]
[1727251734515,3.3327,150.03,149.99,8.2]
[1727251734902,8.2,150.04,149.96,88.94745295]
[1727251735211,3.333,150.01,149.98,8.2]
[1727251735609,3.3327,150.02,149.98,8.2]
[1727251736013,3.3327,150.02,150.0,8.2]
[1727251738208,8.2,150.06,150.01,8.2]
[1727251739316,3.3324,150.04,150.01,8.2]
[1727251740019,3.3321,150.05,150.01,8.2]
[1727251747338,3.3322,150.04,150.01,8.2]
[1727251747642,8.2,150.05,149.98,3.3335]
[1727251747939,8.2,150.05,149.99,15.68113259]
[1727251748141,8.2,150.05,149.99,8.2]
[1727251748342,3.3326,150.03,149.99,8.2]
[1727251749033,3.3327,150.02,149.99,8.2]
[1727251749639,8.2,150.02,149.96,88.94745295]
[1727251749836,8.2,150.02,149.97,7.48356112]
[1727251750040,8.2,150.02,149.96,97.14745295]
[1727251750337,3.3334,149.99,149.97,7.48552148]
[1727251750536,3.3334,149.99,149.96,88.94745295]
[1727251750834,2.7705,150.07,149.97,8.2]
[1727251751036,8.2,150.02,149.97,8.2]
[1727251752335,3.3332,150.0,149.97,8.2]
[1727251755139,3.3332,150.0,149.95,3.334]
[1727251755340,3.3332,150.0,149.97,8.2]
[1727251755935,8.2,150.02,149.92,1.7057]
[1727251756136,8.2,150.02,149.96,8.2]
[1727251756334,3.3335,149.99,149.96,8.2]
[1727251757336,3.3335,149.99,149.92,1.7057]
[1727251757337,3.3335,149.99,149.95,3.3342]
[1727251757532,2.7705,150.07,149.91,1.3558]
[1727251757744,2.7705,150.07,149.96,7.49929056]
[1727251757745,8.2,149.99,149.96,7.49929056]
[1727251757945,8.2,150.0,149.95,8.2]
[1727251758140,8.2,150.0,149.96,7.49939034]
[1727251758345,11.0134,150.01,149.95,8.2]
[1727251758642,11.0134,150.01,149.96,7.49995815]
[1727251758849,11.0134,150.01,149.96,8.2]
[1727251759043,3.3337,149.98,149.96,8.2]
[1727251759241,3.3337,149.98,149.97,8.2]
[1727251759442,2.8134,150.01,149.97,8.2]
[1727251760349,3.3332,150.0,149.97,8.2]
[1727251762050,6.1464,150.01,149.98,8.2]
[1727251762448,2.8134,150.01,149.98,8.2]
[1727251763252,2.8134,150.01,149.95,3.3342]
[1727251763457,2.8134,150.01,149.98,8.2]
[1727251763846,3.3331,150.0,149.98,8.2]
[1727251764247,3.3331,150.0,149.91,98.60714603]
[1727251764248,1.4081,150.01,149.99,8.2]
[1727251764447,77.97531569,150.05,149.99,8.2]
[1727251764647,2.35512025,150.04,149.99,8.2]
[1727251764853,1.3303,150.04,149.99,8.2]
[1727251765052,3.3328,150.02,149.99,8.2]
[1727251770554,9.5303,150.04,149.97,8.2]
[1727251771053,3.3331,150.01,149.97,8.2]
[1727251772361,3.3331,150.0,149.97,8.2]
[1727251772659,9.5303,150.04,149.97,8.2]
[1727251772660,8.2,150.01,149.97,8.2]
[1727251773056,3.3332,150.0,149.97,8.2]
[1727251776261,3.333,150.01,149.98,8.2]
[1727251777560,3.3327,150.02,150.0,8.2]
[1727251777867,1.3303,150.04,150.0,8.2]
[1727251778059,3.3329,150.02,150.0,8.2]
[1727251780866,3.3329,150.02,149.99,8.2]
[1727251782264,3.3329,150.01,149.99,8.2]
[1727251783368,3.3329,150.01,149.96,3.3339]
[1727251783570,3.3329,150.01,149.98,8.2]
[1727251790868,3.3328,150.02,149.98,8.2]
[1727251793075,3.3328,150.02,149.99,8.2]
[1727251793263,3.3325,150.03,150.0,8.2]
[1727251796165,3.3325,150.03,149.99,8.2]
[1727251796575,3.3327,150.02,149.99,8.2]
[1727251800178,3.3329,150.01,149.97,3.3337]
[1727251800380,3.3329,150.01,149.99,8.2]
[1727251800889,69.7699435,150.06,150.0,8.2]
[1727251801177,69.7699435,150.06,150.04,8.2]
[1727251801386,73.1017435,150.06,150.04,8.2]
[1727251801573,73.1017435,150.06,149.96,8.26985756]
[1727251801574,69.7699435,150.06,150.03,8.2]
[1727251801775,69.7699435,150.06,150.02,8.2]
[1727251801975,69.7699435,150.06,149.99,3.3333]
[1727251802174,77.9699435,150.06,150.01,8.2]
[1727251802776,3.3326,150.03,150.01,8.2]
[1727251803279,3.3326,150.03,149.98,3.3336]
[1727251803483,3.3326,150.03,150.0,8.2]
[1727251803786,3.3326,150.03,149.98,3.3336]
[1727251804076,3.3326,150.03,150.01,8.2]
[1727251804976,3.3327,150.02,150.01,8.2]
[1727251805679,3.3325,150.03,150.01,8.2]
[1727251807780,3.3322,150.04,150.01,8.2]
[1727251807976,8.2,150.08,150.02,8.2]
[1727251808279,3.332,150.06,150.04,8.2]
[1727251809282,3.332,150.05,150.02,8.2]
[1727251809478,8.2,150.06,150.01,8.2]
[1727251809875,3.3324,150.04,150.01,8.2]
[1727251811879,3.3324,150.04,150.02,8.2]
[1727251812377,3.3324,150.04,150.01,8.2]
[1727251813182,3.3325,150.03,150.01,8.2]
[1727251818487,12.57362258,150.12,150.02,8.2]
[1727251818690,8.2,150.08,150.02,8.2]
[1727251818886,9.224591,150.07,150.01,8.2]
[1727251819086,3.3324,150.04,150.0,8.2]
[1727251819486,3.3324,150.04,150.01,8.2]
[1727251824084,3.3325,150.03,150.01,8.2]
[1727251824280,3.3325,150.03,150.0,8.2]
[1727251824890,3.3329,150.02,150.0,8.2]
[1727251829890,3.3325,150.03,150.0,8.2]
[1727251830097,3.3325,150.03,150.01,8.2]
[1727251833592,3.3325,150.03,149.99,3.3333]
[1727251833593,8.2,150.04,149.95,4.55861819]
[1727251833895,2.7656,150.06,149.97,8.2]
[1727251834096,8.2,150.04,149.98,7.50155891]
[1727251834290,8.2,150.04,149.99,8.2]
[1727251834498,3.3326,150.03,149.99,8.2]
[1727251835598,3.3328,150.02,149.97,3.3337]
[1727251835794,3.3328,150.02,149.99,8.2]
[1727251836896,3.3325,150.03,150.0,8.2]
[1727251838504,3.3323,150.04,150.01,8.2]
[1727251839701,3.3321,150.05,150.01,8.2]
[1727251841711,3.3314,150.08,150.04,8.2]
[1727251841898,12.58407771,150.12,150.07,8.2]
[1727251842102,12.58407771,150.12,149.97,8.27255588]
[1727251842103,4.35515772,150.11,150.08,8.2]
[1727251842307,1.02435772,150.1,150.08,8.2]
[1727251842605,3.3308,150.11,150.08,8.2]
[1727251843305,2.6296,150.13,149.99,11.27685588]
[1727251843504,8.2,150.1,150.06,8.2]
[1727251844406,3.3313,150.09,150.06,8.2]
[1727251844903,8.2,150.1,150.06,8.2]
[1727251845908,3.3314,150.08,150.06,8.2]
[1727251858019,8.2,150.1,150.04,8.2]
[1727251858215,8.2,150.09,150.04,8.2]
[1727251858718,3.332,150.06,150.03,8.2]
[1727251859017,8.2,150.07,150.02,8.2]
[1727251859217,3.3319,150.06,150.03,8.2]
[1727251860019,3.3318,150.07,150.03,8.2]
[1727251860212,3.3318,150.07,150.05,8.2]
[1727251860415,12.56373917,150.12,150.05,8.2]
[1727251860621,3.3315,150.08,150.05,8.2]
[1727251860817,2.6296,150.13,150.07,8.2]
[1727251861124,1.02424354,150.12,150.0,26.9259237]
[1727251861313,1.02424354,150.12,150.09,8.2]
[1727251863229,1.02416457,150.11,150.09,8.2]
[1727251863531,3.3303,150.13,150.09,8.2]
[1727251863826,4.35466459,150.12,150.09,8.2]
[1727251864019,1.02416459,150.11,150.09,8.2]
[1727251864219,3.331,150.1,150.07,8.2]
[1727251864518,8.2,150.13,150.08,8.2]
[1727251864821,1.02416453,150.12,150.11,8.2]
[1727251865022,1.3811,150.14,150.11,8.2]
[1727251865327,4.7008,150.15,150.12,8.2]
[1727251865520,1.02388398,150.14,150.12,8.2]
[1727251865818,4.7008,150.15,150.12,8.2]
[1727251867022,3.3301,150.14,150.11,8.2]
[1727251868534,3.3302,150.13,150.11,8.2]
[1727251869018,3.3306,150.12,150.09,8.2]
[1727251869223,8.2,150.13,150.08,8.2]
[1727251869421,9.5368,150.13,150.08,8.2]
[1727251869621,3.331,150.1,150.04,3.3322]
[1727251869926,8.2,150.11,150.06,8.2]
[1727251870131,3.3312,150.09,150.06,8.2]
[1727251871522,3.3314,150.08,150.06,8.2]
[1727251875426,3.3316,150.07,150.06,8.2]
[1727251877230,3.3316,150.07,150.05,8.2]
[1727251877836,8.2,150.1,150.05,8.2]
[1727251879430,3.3317,150.07,150.04,8.2]
[1727251882531,3.3319,150.06,150.02,3.3326]
[1727251882831,3.3319,150.06,150.04,8.2]
[1727251886936,3.3319,150.06,150.02,3.3326]
[1727251887132,3.332,150.05,150.03,8.2]